Workbook

Sheet Commencer
A2: Se familiariser avec les formules
A3: En quelques étapes, vous serez en mesure de créer des formules et des fonctions dans Excel, le tableur le plus puissant au monde.
A4: Pour revenir au début, appuyez sur CTRL+ORIGINE. Pour commencer la visite, appuyez sur CTRL+PAGE SUIVANTE.

Sheet Informations de base
A1: Informations de base : faire des maths avec Excel
A2: Dans Excel, vous pouvez additionner, soustraire, multiplier et diviser sans utiliser la moindre fonction intégrée. Il vous suffit d’utiliser quelques opérateurs de base : +, -, *, /. Toutes les formules commencent par un signe égal (=). | C2: Chiffres à utiliser : | E2: Opération : | F2: Formules : | G2: Réponses :
A3: Pour additionner, sélectionnez la cellule F3, entrez =C3+C4, puis appuyez sur la touche Entrée. | C3: 1 | E3: Addition (+) | G3: =C3+C4 -> 3
A4: Pour soustraire, sélectionnez la cellule F4, entrez =C3-C4, puis appuyez sur la touche Entrée. | C4: 2 | E4: Soustraction (-) | G4: =C3-C4 -> -1
A5: Pour multiplier, sélectionnez la cellule F5, entrez =C3*C4, puis appuyez sur la touche Entrée. | E5: Multiplication (*) | G5: =C3*C4 -> 2
A6: Pour diviser, sélectionnez la cellule F6, entrez =C3/C4, puis appuyez sur la touche Entrée. | E6: Division (/) | G6: =C3/C4 -> 0.5
A7: Essayez ça : modifiez les chiffres des cellules C3 et C4, et vous verrez que les résultats de la formule changent automatiquement. | E7: Puissance (^) | G7: =C3^C4 -> 1
A8: BONUS SUPPLÉMENTAIRE : Pour élever une valeur à une puissance, utilisez le symbole accent circonflexe (^), par exemple, =A1^A2. Pour entrer ce symbole, appuyez sur ^+Espace. Dans la cellule F7, entrez =C3^C4.
A9: Poursuivez votre lecture pour plus d’informations
A10: Étape suivante
A11: Informations complémentaires sur les formules, les cellules et les plages
A12: Excel est composé de cellules individuelles regroupées en lignes et en colonnes. Les lignes sont numérotées, et les colonnes sont représentées par des lettres. Plus d’un million de lignes et 16 000 colonnes sont disponibles, et vous pouvez insérer des formules dans chacune d’entre elles.
A13: Les formules peuvent contenir des références de cellule, des plages de références de cellule, des opérateurs et des constantes. Les exemples suivants correspondent tous à des formules : =A1+B1 =10+20 =SOMME(A1:A10)
A14: Dans le troisième exemple ci-dessus, vous pouvez constater que nous avons utilisé la fonction SOMME. Une fonction est une commande prédéfinie qui, à partir d’une ou plusieurs valeurs, effectue un calcul et renvoie un résultat. Par exemple, la fonction SOMME additionne les références ou plages de cellules que vous spécifiez. Dans cet exemple, elle additionne les cellules A1 à A10. Excel propose plus de 400 fonctions, que vous pouvez explorer sous l’onglet Formules.
A15: Les formules qui incluent des fonctions commencent par un signe égal, suivi du nom de la fonction, puis de ses arguments (valeurs utilisées par une fonction pour effectuer un calcul) entre parenthèses.
A16: Pour confirmer une formule, appuyez sur la touche Entrée. La formule effectue alors le calcul et le résultat s’affiche dans la cellule. Pour voir la formule proprement dite, consultez la barre de formule située sous le ruban, ou appuyez sur la touche F2 pour passer en mode Modifier afin d’afficher la formule dans la cellule. Appuyez de nouveau sur la touche Entrée pour finaliser la formule et calculer le résultat.
A17: Explications sur les formules
A18: =10+20 est une formule, dans laquelle 10 et 20 sont des constantes et le signe + est un opérateur.
A19: =SOMME(A1:A10) est une formule, dans laquelle SOMME est le nom de la fonction, les parenthèses ouvrante et fermante contiennent les arguments de la formule, et A1:A10 est la plage de cellules de la fonction.
A20: =SOMME(A1:A10;C1:C10) est une formule, dans laquelle SOMME est le nom de la fonction, les parenthèses ouvrante et fermante contiennent les arguments de la formule, et A1:A10;C1:C10 sont les plages de cellules de la fonction séparées par une virgule.
A21: BON À SAVOIR : Les constantes sont des valeurs que vous entrez dans des cellules ou dans des formules. Même si =10+20 permet d’effectuer le même calcul que =A1+B1, nous vous déconseillons d’utiliser des constantes. Pourquoi ? Parce qu’une constante n’est pas facile à voir sans rechercher et sélectionner la cellule correspondante. Cela peut rendre les modifications ultérieures difficiles. Il est préférable de placer vos constantes dans des cellules, où elles peuvent facilement être ajustées et référencées dans vos formules. Par exemple : sélectionnez la cellule jaune comportant le nombre 12 ci-dessous. Vous pouvez constater que nous avons utilisé la fonction SOMME suivie d’une plage de cellules. Nous n’avons pas directement entré « 4 » ou « 8 » dans la formule.
A22: Précédent
A23: Suivant
A24: Plus d’informations sur le web
A25: Utiliser Excel comme calculatrice
A26: Vue d’ensemble des formules dans Excel
A27: Fonctions Excel (par catégorie)
A28: Fonctions Excel (par ordre alphabétique)
A29: Formation en ligne gratuite sur Excel
J40: Valeurs
J41: 4
J42: 8
J43: =SUM(J41:J42) -> 12

Sheet Introduction aux fonctions
A1: Introduction aux fonctions
A2: Les fonctions vous permettent d’effectuer différentes actions, comme des opérations mathématiques, des recherches de valeurs ou même des calculs de dates et d’heures. Nous allons essayer différentes méthodes pour additionner des valeurs avec la fonction SOMME. | C2: Fruits | D2: Quantité | F2: Viande | G2: Quantité
A3: Sous la colonne Quantité du tableau Fruits (cellule D7), entrez =SOMME(D3:D6). Ou entrez =SOMME(, sélectionnez cette plage avec la souris et appuyez sur la touche Entrée. La formule additionne les valeurs des cellules D3, D4, D5 et D6. Vous obtenez le résultat suivant : 170. | C3: Pommes | D3: 50 | F3: Bœuf | G3: 50
A4: Essayons maintenant la fonctionnalité Somme automatique. Sélectionnez la cellule G7 du tableau Viande, puis accédez à Formules > Somme automatique > et sélectionnez SOMME. Excel entre automatiquement la formule pour vous. Appuyez sur la touche Entrée pour confirmer. La fonctionnalité Somme automatique contient les fonctions les plus courantes. | C4: Oranges | D4: 20 | F4: Poulet | G4: 30
A5: Vous pouvez aussi utiliser un raccourci clavier. Sélectionnez la cellule D15, puis appuyez sur Alt = et sur Entrée. La fonction SOMME est automatiquement entrée. | C5: Bananes | D5: 60 | F5: Porc | G5: 10
A6: Poursuivez votre lecture pour plus d’informations | C6: Citrons | D6: 40 | F6: Poisson | G6: 50
A7: BONUS SUPPLÉMENTAIRE Utilisez la fonction NB avec l’une des méthodes que vous avez déjà essayées. La fonction NB compte le nombre de cellules d’une plage qui contient des nombres. | C7: SOMME > | D7: =SUM(D3:D6) -> 170 | F7: SOMME >
A8: Étape suivante
A9: Informations complémentaires sur les fonctions | C9: Article | D9: Quantité | F9: Article | G9: Quantité
A10: Accédez à l’onglet Formules et parcourez la Bibliothèque de fonctions, dans laquelle les fonctions sont répertoriées par catégorie (Texte, Date et heure, etc.). Insérer une fonction vous permet de rechercher des fonctions par nom et de lancer un Assistant pour vous aider à créer votre formule. Lorsque vous commencez à entrer un nom de fonction après avoir appuyé sur =, Excel lance la fonctionnalité IntelliSense, qui répertorie toutes les fonctions commençant par les lettres que vous tapez. Dès que vous voyez la fonction souhaitée, appuyez sur Tab et Excel entrera automatiquement le nom complet de la fonction ainsi que la parenthèse ouvrante. Excel affichera également les arguments obligatoires et facultatifs. Examinons maintenant l’anatomie de quelques fonctions. La structure de la fonction SOMME est la suivante : | C10: Pain | D10: 50 | F10: Pain | G10: 50
A11: Si la fonction SOMME pouvait parler, elle dirait ceci : renvoyer la somme de toutes les valeurs des cellules D35 à D38 et toutes celles de la colonne H. SOMME est le nom de la fonction, D35:D38 est l’argument de la première plage, qui est presque toujours obligatoire, et H:H est l’argument de la deuxième plage, les deux plages étant séparées par une virgule. Essayons à présent une formule qui ne nécessite aucun argument. | C11: Beignets | D11: 100 | F11: Beignets | G11: 100
A12: La fonction AUJOURDHUI renvoie la date du jour. Elle se met automatiquement à jour dès qu’Excel procède à un nouveau calcul. | C12: Cookies | D12: 40 | F12: Cookies | G12: 40
A13: ESSAYEZ ÇA Sélectionnez ces cellules. Puis, dans le coin inférieur droit de la fenêtre Excel, recherchez SOMME : 170 sur la barre inférieure. Il s’agit de la barre d’état, qui vous permet de trouver rapidement un total ainsi que d’autres informations sur une cellule ou une plage sélectionnée. | C13: Gâteaux | D13: 50 | F13: Gâteaux | G13: 50
A14: DÉTAIL IMPORTANT Double-cliquez sur cette cellule. Vous pouvez voir le 100 à la fin. Bien qu’il soit possible de placer des nombres dans une formule de ce type, cela est déconseillé sauf nécessité absolue. Il s’agit d’une constante, et il est facile d’oublier qu’elle est là. Nous vous recommandons plutôt de faire référence à une autre cellule (par exemple, la cellule F51). En effet, celle-ci est facilement identifiable et n’est pas dissimulée dans une formule. | C14: Tartes | D14: 20 | F14: Tartes | G14: 20
A15: Plus d’informations sur le web | C15: SOMME > | F15: NB >
A16: À propos de la fonction SOMME
A17: Utiliser Somme automatique pour additionner des nombres
A18: À propos de la fonction NB
A19: Formation en ligne gratuite sur Excel
A20: Retour au début
A21: Étape suivante
C34: Fruits | D34: Quantité
C35: Pommes | D35: 50
C36: Oranges | D36: 20
C37: Bananes | D37: 60
C38: Citrons | D38: 40
C39: SOMME > | D39: =SUM(D35:D38) -> 170
C44: Article | D44: Quantité
C45: Voitures | D45: 20
C46: Camions | D46: 10
C47: Vélos | D47: 10
C48: Patins | D48: 40
D50: Total : | F50: Valeur supplémentaire | G50: Nouveau Total
D51: =SUM(D45:D48,100) -> 180 | F51: 100 | G51: =SUM(D45:D48,F51) -> 180

Sheet MOYENNE
A1: Fonction MOYENNE
A2: Utilisez la fonction MOYENNE pour obtenir la moyenne des nombres d’une plage de cellules. | C2: Fruits | D2: Quantité | F2: Viande | G2: Quantité
A3: Sélectionnez la cellule D7, puis utilisez Somme automatique pour ajouter une fonction MOYENNE. | C3: Pommes | D3: 50 | F3: Bœuf | G3: 50
A4: Sélectionnez maintenant la cellule G7, et entrez une fonction MOYENNE en tapant =MOYENNE(G3:G6). | C4: Oranges | D4: 20 | F4: Poulet | G4: 30
A5: À la cellule D15, vous pouvez utiliser Somme automatique ou entrer manuellement une autre fonction MOYENNE. | C5: Bananes | D5: 60 | F5: Porc | G5: 10
A6: ESSAYEZ ÇA Sélectionnez une plage de nombres et consultez la barre d’état pour connaître la moyenne. | C6: Citrons | D6: 40 | F6: Poisson | G6: 50
A7: Activer la feuille précédente | C7: MOYENNE > | F7: MOYENNE >
A8: Accéder à la feuille suivante
A9: BONUS SUPPLÉMENTAIRE Essayez d’utiliser ici MEDIANE ou MODE. MEDIANE renvoie la valeur qui se trouve au centre de l’ensemble de données, tandis que MODE renvoie la valeur la plus fréquente. | C9: Article | D9: Quantité | F9: Article | G9: Quantité
A10: Liens pour accéder à des informations complémentaires sur le web | C10: Pain | D10: 50 | F10: Pain | G10: 50
A11: Sélectionnez ce lien pour accéder sur le web à des informations complémentaires sur la fonction MOYENNE | C11: Beignets | D11: 100 | F11: Beignets | G11: 100
A12: Sélectionnez ce lien pour accéder sur le web à des informations complémentaires sur la fonction MEDIANE | C12: Cookies | D12: 40 | F12: Cookies | G12: 40
A13: Sélectionnez ce lien pour accéder sur le web à des informations complémentaires sur la fonction MODE | C13: Gâteaux | D13: 50 | F13: Gâteaux | G13: 50
A14: Sélectionnez ce lien pour accéder sur le web à une formation gratuite sur Excel | C14: Tartes | D14: 20 | F14: Tartes | G14: 20
C15: MOYENNE >

Sheet MIN et MAX
A1: Fonctions MIN et MAX
A2: Utilisez la fonction MIN pour obtenir le nombre minimum d’une plage de cellules. | C2: Fruits | D2: Quantité | F2: Viande | G2: Quantité
A3: Utilisez la fonction MAX pour obtenir le nombre maximum d’une plage de cellules. | C3: Pommes | D3: 50 | F3: Bœuf | G3: 50
A4: Sélectionnez la cellule D7, puis utilisez l’Assistant Somme automatique pour ajouter une fonction MIN. | C4: Oranges | D4: 20 | F4: Poulet | G4: 30
A5: Sélectionnez maintenant la cellule G7 et entrez une fonction MAX en tapant =MAX(G3:G6). | C5: Bananes | D5: 60 | F5: Porc | G5: 10
A6: À la cellule D15, vous pouvez utiliser l’Assistant Somme automatique ou entrer manuellement une fonction MIN ou MAX. | C6: Citrons | D6: 40 | F6: Poisson | G6: 50
A7: Plus d’informations sur le web | C7: MIN > | F7: MAX >
A8: À propos de la fonction MAX
A9: À propos de la fonction MAX | C9: Article | D9: Quantité | F9: Article | G9: Quantité
A10: Formation en ligne gratuite sur Excel | C10: Pain | D10: 50 | F10: Pain | G10: 50
A11: BON À SAVOIR Vous pouvez utiliser MIN ou MAX avec plusieurs plages, ou avec des valeurs pour renvoyer la plus grande ou la plus petite de ces valeurs, par exemple, =MIN(A1:A10;B1:B10) ou =MAX(A1:A10;B1), où B1 contient une valeur seuil, par exemple 10, auquel cas la formule ne renverra jamais un résultat inférieur à 10. | C11: Beignets | D11: 100 | F11: Beignets | G11: 100
C12: Cookies | D12: 40 | F12: Cookies | G12: 40
C13: Gâteaux | D13: 50 | F13: Gâteaux | G13: 50
C14: Tartes | D14: 20 | F14: Tartes | G14: 20
C15: MIN ou MAX > | G15: =MIN(G10:G14,10) -> 10

Sheet Date et heure
A1: Fonctions de date
A2: Excel peut vous donner la date actuelle, telle que définie dans les paramètres régionaux de votre ordinateur. Vous pouvez également ajouter et soustraire des dates.
A3: La fonction AUJOURDHUI renvoie la date du jour. Il s’agit d’une fonction dite « volatile » car elle est quotidiennement mise à jour. Ainsi, en rouvrant votre classeur demain, vous y verrez la date de demain. Dans la cellule D6, entrez =AUJOURDHUI().
A4: Soustraire des dates : entrez la date de votre prochain anniversaire au format JJ/MM/AA dans la cellule D7 et Excel indiquera le nombre de jours restants dans la cellule D8 en utilisant la formule =D7-D6.
A5: Ajouter des dates : supposons que vous voulez connaître la date d’échéance d’une facture ou savoir quand vous devez rendre un livre à la bibliothèque. Vous pouvez ajouter des jours à une date. Dans la cellule D10, entrez un nombre de jours aléatoire. Nous avons entré la formule =D6+D10 dans la cellule D11 pour calculer la date d’échéance à partir d’aujourd'hui. | C5: Fonctions de date
A6: BON À SAVOIR Pour représenter les dates, Excel compte le nombre de jours écoulés depuis le 1er janvier 1900. Les heures sont exprimées en fractions de journée basées sur le nombre de minutes. Par exemple, 1/01/2017 12:30 est représenté sous la forme suivante : 42736.5208. Si l’heure ou la date apparaissent sous cette forme, vous pouvez appuyer sur Ctrl+1 > Nombre > et sélectionner un format de Date ou d’Heure. | C6: Date du jour : | F6: =IF(D6=TODAY(),"Vous avez compris!","") -> 
A7: DÉTAIL IMPORTANT Si vous n’avez pas encore entré votre date d’anniversaire, vous pouvez utiliser une fonction SI telle que celle-ci pour empêcher Excel d’afficher un nombre négatif : =SI(D7="";"";D7-D6), ce qui signifie « SI D7 n’est égal à rien, ne rien afficher, sinon afficher D7 moins D6 ». | C7: Votre anniversaire :
A8: Fonctions d’heure | C8: Jours restants avant votre anniversaire : | D8: =D7-D6 -> 0
A9: Excel peut vous donner l’heure actuelle, telle que définie dans les paramètres régionaux de votre ordinateur. Vous pouvez également ajouter ou soustraire des heures. Par exemple, vous pouvez suivre le nombre d’heures de travail hebdomadaires d’un employé pour calculer son salaire et ses heures supplémentaires.
A10: Dans la cellule D28, entrez =MAINTENANT(). Cette fonction renvoie l’heure actuelle et se met à jour à chaque calcul d’Excel. Pour changer le format d’heure, accédez à Ctrl+1 > Nombre > Heure > et sélectionnez le format souhaité. | C10: Délai de grâce (en jours) :
A11: Additionner des heures : à la cellule D36, nous avons entré la formule =((D35-D32)-(D34-D33))*24, qui calcule les heures de début et de fin d’un employé, puis soustrait le temps qu’il a pris pour déjeuner. En fin de formule, *24 convertit en heures la fraction de la journée prise en compte par Excel. Mais vous allez devoir sélectionner le format Nombre pour la cellule. Pour ce faire, accédez à Accueil > Format > Cellules (Ctrl+1) > Nombre > Nombre > 2 décimales. | C11: Date d’échéance de la facture : | D11: =D6+D10 -> 00:00:00
A12: Si cette formule pouvait parler, elle dirait ceci : « Prendre l’Heure d’arrivée et l’Heure de départ, puis soustraire les heures de Début de déjeuner/Fin de déjeuner, et multiplier celles-ci par 24 pour convertir le temps fractionné d’Excel en heures », ou =((Heure de départ-Heure d’arrivée)-(Fin du déjeuner-Début du déjeuner))*24.
A13: Précédent
A14: Suivant
A15: Plus d’informations sur le web
A16: À propos de la fonction AUJOURDHUI
A17: À propos de la fonction MAINTENANT
A18: À propos de la fonction DATE
A19: Formation en ligne gratuite sur Excel
C27: Fonctions d’heure
C28: Heure actuelle :
C31: Heures de travail quotidiennes
C32: Heure d’arrivée : | D32: 08:00:00
C33: Début du déjeuner : | D33: 12:00:00
C34: Fin du déjeuner : | D34: 13:00:00
C35: Heure de départ : | D35: 17:00:00
C36: Nombre total d’heures : | D36: =((D35-D32)-(D34-D33))*24 -> 8
C45: Date et heure statiques
C46: Date : | D46: 2017-09-27
C47: Heure : | D47: 08:52:00

Sheet Combiner texte et nombres
A1: Combiner du texte à partir de différentes cellules
A2: Dans Excel, il est souvent utile de combiner du texte réparti dans des cellules différentes. Cet exemple est très courant : vous disposez de prénoms et de noms que vous souhaitez combiner sous la forme « Prénom, Nom » ou « Nom complet ». Pour ce faire, vous pouvez utiliser le signe esperluette (&). | C2: Prénom | D2: Nom | E2: Nom, Prénom | F2: Nom complet
A3: Dans la cellule E3, entrez =D3&C3 pour combiner les noms et prénoms. | C3: Nicole | D3: Durand | E3: =D3&", "&C3 -> Durand, Nicole | F3: =C3&" "&D3 -> Nicole Durand
A4: Cela dit, la forme DurandNicole n’est pas idéale. Une virgule et un espace doivent être ajoutés. Pour ce faire, nous allons utiliser des guillemets afin de créer une nouvelle chaîne de texte. Cette fois, entrez =D3&", "&C3. La portion &", "& nous permet d’ajouter une virgule et un espace au texte des cellules. | C4: Roger | D4: Neurisse
A5: Pour créer le nom complet, nous allons combiner le prénom et le nom, mais utiliser un espace sans virgule. Dans la cellule F3, entrez =C3&" "&D3. | C5: Jean | D5: Michelet
A6: Poursuivez votre lecture pour plus d’informations | C6: Marie | D6: Jamet
A7: Suivant | C7: Stéphane | D7: Tessier
A8: Combiner du texte et des nombres | C8: Raymond | D8: Normand
A9: Nous allons maintenant utiliser le symbole & pour combiner du texte et des nombres. Examinez les cellules C28:D29. Comme vous pouvez le constater, la date et l’heure figurent dans des cellules distinctes. Vous pouvez les combiner avec le symbole &, comme dans les cellules C32:C33, mais le résultat ne convient pas. Dans la mesure où Excel n’est pas capable de deviner de quelle façon vous souhaitez afficher les chiffres, il retourne la date au format de base, sous forme de numéros de série. Nous devons explicitement indiquer à Excel comment mettre en forme la portion numérique de la formule afin qu’il l’affiche au format de notre choix dans la chaîne de texte qui en résulte. Pour ce faire, nous allons utiliser la fonction TEXTE et un code de format. | C9: Robert | D9: Troyat
A10: Dans la cellule C36, entrez =C28&" "&TEXTE(D28;"JJ/MM/AAAA"). JJ/MM/AAAA correspond au code de format français Jour/Mois/Année, par exemple 25/09/2017. | C10: Yvonne | D10: Martin
A11: Dans la cellule C37, entrez =C29&" "&TEXTE(D29;"H:MM"). H:MM correspond au code de format français Heures:Minutes, par exemple 13:30.
A12: ESSAYEZ ÇA Les formules sont parfois difficiles à lire, en particulier lorsqu’elles sont longues, mais vous pouvez séparer des portions de celles-ci à l’aide d’espaces, comme dans l’exemple suivant : =C28 & " " & TEXTE(D28;"JJ/MM/AAAA")
A13: À APPROFONDIR Si vous ne savez pas quel code de format utiliser, vous pouvez utiliser Ctrl+1 > Nombre pour appliquer le format de votre choix à une cellule. Sélectionnez ensuite l’option Personnalisé. Vous pouvez alors copier le code de format affiché dans votre formule.
A14: Plus d’informations sur le web
A15: À propos de la fonction TEXTE
A16: Combiner du texte et des nombres
A17: Formation en ligne gratuite sur Excel
C27: Utiliser du texte et des nombres
C28: Date du jour : | D28: =TODAY() -> 2019-10-10
C29: Heure actuelle : | D29: =NOW() -> 43748.54611
C31: Combiner du texte et des nombres
C32: =C28&" "&D28 -> Date du jour : 43748
C33: =C29&" "&D29 -> Heure actuelle : 43748,5461096065
C35: Mise en forme de texte et de nombres
C36: =C28&" "&TEXT(D28,"JJ/MM/AAAA") -> Date du jour : 10/10/2019
C37: =C29&" "&TEXT(D29,"H:MM") -> Heure actuelle : 13:06

Sheet Instructions SI
A1: Instructions SI
A2: Les instructions SI vous permettent d’établir des comparaisons logiques entre les conditions. Une instruction SI dit généralement ceci : si une condition est vraie, faire telle chose. Sinon, faire autre chose. Les formules peuvent renvoyer du texte, des valeurs ou d’autres calculs.
A3: Dans la cellule D9, entrez =SI(C9="Pomme";VRAI;FAUX). La bonne réponse est VRAI.
A4: Copiez le contenu de la cellule D9 dans la cellule D10. La réponse est FAUX car une orange n’est pas une pomme.
A5: Prenons un autre exemple : examinez la cellule D12. Nous y avons entré la formule =SI(C12<100;"Inférieur à 100";"Supérieur ou égal à 100"). Que se passe-t-il si vous entrez un nombre supérieur à 100 dans la cellule C12 ?
A6: DÉTAIL IMPORTANT Contrairement à d’autres termes employés dans les formules Excel, il n’est pas nécessaire de mettre VRAI et FAUX entre guillemets, et Excel les met automatiquement en majuscules. Il n’est pas non plus nécessaire de mettre les chiffres entre guillemets. Les termes ou expressions ordinaires, tels que Oui ou Non doivent être mis entre guillemets. Par exemple : =SI(C9="Pomme";"Oui";"Non")
A7: Poursuivez votre lecture pour plus d’informations
A8: Suivant | C8: Instructions SI
A9: Association de l’instruction SI et d’une autre fonction | C9: Pomme
A10: Les instructions SI peuvent également forcer l’exécution de calculs supplémentaires si une condition donnée est remplie. Nous allons ici évaluer une cellule pour déterminer si une taxe doit s’appliquer à la vente, et calculer celle-ci si la condition est vraie. | C10: Orange
A11: À la cellule F33, nous avons entré la formule =SI(E33="Oui";F31*TaxVente;0), dans laquelle nous avons configuré TaxeVente en tant que plage nommée avec une valeur de 0,0825. Notre formule dit ceci : si la cellule E33 est égale à Oui, multiplier la cellule F31 par TaxeVente, sinon retourner 0. Remplacez Oui par Non dans la cellule E33 et vous constaterez que le résultat change.
A12: Nous avons ensuite ajouté une instruction SI pour calculer les frais de port, si ceux-ci s’appliquent. La cellule F35 contient la formule =SI(E35="Oui";SOMME(D28:D29)*1,25;0). Cette formule signifie ceci : « Si la cellule E35 est Oui, calculer la somme de la colonne Quantité du tableau ci-dessus, puis la multiplier par 1,25, sinon retourner 0 ». | C12: 50 | D12: =IF(C12<100,"Inférieur à 100","Supérieur ou égal à 100") -> Inférieur à 100
A13: Ensuite, dans la formule de la cellule F35, remplacez 1,25 par "Frais de port". Lorsque vous commencez à taper les premières lettres, la fonction de correction automatique d’Excel affiche le terme pour vous. Appuyez alors sur Tab pour entrer ce terme. Il s’agit d’une plage nommée, que nous avons entrée à partir de Formules > Définir un nom. Désormais, si vous souhaitez modifier vos frais de port, il vous suffira de les changer à un seul emplacement, et vous pourrez ensuite réutiliser le terme Frais de port n’importe où dans le classeur.
A14: BON À SAVOIR Lorsque vous créez une formule, Excel affiche automatiquement des bordures de couleur autour des plages référencées par la formule, et les plages correspondantes apparaissent dans la même couleur au sein de la formule proprement dite. Ces couleurs sont également visibles si vous sélectionnez la cellule F33 et appuyez sur F2 pour modifier la formule.
A15: CONSEIL D’EXPERT Les plages nommées vous permettent de définir des termes ou valeurs à un emplacement, puis de les réutiliser à d’autres emplacements du classeur. Pour afficher toutes les plages nommées de ce classeur, accédez à Formules > Gestionnaire de noms. Cliquez ici pour en savoir plus.
A16: Précédent
A17: Suivant
A18: Plus d’informations sur le web
A19: À propos de la fonction SI
A20: À propos de la fonction SI.CONDITIONS
A21: Instructions SI avancées
A22: Formation en ligne gratuite sur Excel
C27: Article | D27: Quantité | E27: Coût | F27: Total
C28: Machin | D28: 2 | E28: 9.760711586 | F28: ='Instructions SI'!$E$28:$E$29*'Instructions SI'!$D$28:$D$29 -> 19.52142317
C29: Bidule | D29: 3 | E29: 3.418920246 | F29: ='Instructions SI'!$E$28:$E$29*'Instructions SI'!$D$28:$D$29 -> 10.25676074
D31: Sous-total | E31: =SUM('Instructions SI'!$E$28:$E$29) -> 13.17963183 | F31: =SUM('Instructions SI'!F28:F29) -> 29.77818391
D33: Taxe de vente ? | E33: Oui | F33: =IF(E33="Oui",F31*TaxeVente,0) -> 2.456700173
D35: Frais de port ? | E35: Oui | F35: =IF(E35="Oui",SUM(D28:D29)*1.25,0) -> 6.25
D37: Total | F37: =SUM(F33,F31,F35) -> 38.48488408

Sheet RECHERCHEV
A1: RECHERCHEV
A2: RECHERCHEV est l’une des fonctions les plus fréquemment utilisées dans Excel (et l’une de nos préférées). Elle permet de rechercher une valeur dans une colonne située à gauche et, si elle trouve une correspondance, elle renvoie des informations dans une autre colonne située à droite. RECHERCHEV dit ceci :
A3: =VLOOKUP(A1,B:C,2,FALSE) -> 
A4: Que voulez-vous rechercher ?
A5: Si vous trouvez ce que vous recherchez, à combien de colonnes sur la droite voulez-vous afficher une valeur ?
A6: Où voulez-vous effectuer la recherche ?
A7: Souhaitez-vous obtenir une correspondance parfaite ou approximative ?
A8: Dans la cellule D22, entrez =RECHERCHEV(C22;C17:D20;2;FAUX). Pour l’article Pommes, la bonne réponse est 50. RECHERCHEV a recherché l’article Pommes puis, après l’avoir trouvé, est passé à la colonne de droite et a renvoyé le nombre correspondant.
A9: Faites maintenant un essai avec la section Viande, à la cellule G22. Vous devez obtenir la formule suivante : =RECHERCHEV(F22;F17:G20;2;FAUX).
A10: EXPÉRIMENTEZ Essayez de sélectionner différents éléments dans les listes déroulantes. Vous verrez alors que les cellules de résultat affichent instantanément de nouvelles valeurs.
A11: Poursuivez votre lecture pour plus d’informations
A12: Suivant
A13: RECHERCHEV et #N/A
A14: Parfois, la fonction RECHERCHEV ne trouve pas ce que vous recherchez et renvoie une erreur (#N/A). Cette erreur peut être due à l’une des deux causes suivantes : la valeur recherchée n’existe pas ou la cellule de référence ne comporte encore aucune valeur.
A15: Si vous savez que la valeur recherchée existe et souhaitez masquer l’erreur lorsque la cellule de recherche est vide, vous pouvez utiliser une instruction SI. Nous allons encapsuler la formule RECHERCHEV de la cellule D43 comme ceci : =SI(C43="";"";RECHERCHEV(C43;C37:D41;2;FAUX)) Cette formule signifie : si la cellule C43 n’est égale à rien (""), ne rien renvoyer, sinon renvoyer les résultats de la fonction RECHERCHEV. Notez que nous avons ajouté une deuxième parenthèse fermante à la fin de la formule. Celle-ci ferme l’instruction SI.
A16: Si vous n’êtes pas sûr de l’existence de la valeur recherchée mais que vous souhaitez malgré tout supprimer l’erreur #N/A, vous pouvez utiliser une fonction de gestion d’erreur SIERREUR à la cellule G43 : =SIERREUR(RECHERCHEV(F43;F37:G41;2;FAUX);""). La fonction SIERREUR signifie ceci : si la fonction RECHERCHEV renvoie un résultat valide, l’afficher, sinon ne rien afficher (""). Nous n’avons ici rien affiché (""), mais vous pouvez également utiliser des chiffres (0,1, 2, etc.) ou du texte (par exemple, « La formule est incorrecte »). | C16: Fruits | D16: Quantité | F16: Viande | G16: Quantité
A17: DÉTAIL IMPORTANT La fonction SIERREUR est un gestionnaire d’erreurs global, ce qui signifie qu’elle supprimera toutes les erreurs renvoyées par votre formule. Cela peut entraîner des problèmes si Excel vous envoie une notification pour vous signaler que votre formule contient une erreur légitime qui doit être résolue. En règle générale, il est préférable de ne pas ajouter de gestionnaires d’erreurs à vos formules tant que vous n’êtes pas absolument certain qu’elles fonctionnent correctement. | C17: Pommes | D17: 50 | F17: Bœuf | G17: 50
A18: Précédent | C18: Oranges | D18: 20 | F18: Poulet | G18: 30
A19: Suivant | C19: Bananes | D19: 60 | F19: Porc | G19: 10
A20: Plus d’informations sur le web | C20: Citrons | D20: 40 | F20: Poisson | G20: 50
A21: À propos de la fonction RECHERCHEV
A22: À propos des fonctions INDEX/EQUIV | C22: Pommes | F22: Porc
A23: À propos de la fonction SIERREUR
A24: Utiliser un tableau croisé dynamique pour analyser les données d’une feuille de calcul
A25: Formation en ligne gratuite sur Excel
C35: Si la fonction SOMME de la cellule D42 pouvait parler, voici ce qu’elle dirait : Additionner les valeurs des cellules D38, D39, D40 et D41.
C36: Article | D36: Quantité | F36: Article | G36: Quantité
C37: Pain | D37: 50 | F37: Pain | G37: 50
C38: Beignets | D38: 100 | F38: Beignets | G38: 100
C39: Cookies | D39: 40 | F39: Cookies | G39: 40
C40: Gâteaux | D40: 50 | F40: Gâteaux | G40: 50
C41: Tartes | D41: 20 | F41: Tartes | G41: 20
D43: =VLOOKUP(C43,C37:D41,2,FALSE) ->  | F43: Pâtisserie | G43: =IFERROR(VLOOKUP(F43,F37:G41,2,FALSE),"") -> 

Sheet Fonctions conditionnelles
A1: Fonctions conditionnelles - SOMME.SI
A2: Les fonctions conditionnelles vous permettent d’additionner, de calculer la moyenne, de compter ou d’obtenir les valeurs minimum ou maximum d’une plage par rapport à une condition donnée ou en fonction de critères que vous spécifiez. Par exemple, parmi tous les fruits de la liste, combien correspondent à des pommes ? Ou, combien d’oranges appartiennent au type Floride ? | C2: Fruits | D2: Quantité | F2: Fruits | G2: Type | H2: Quantité | Z2: Fruits | AB2: Pommes | AD2: Oranges | AF2: Bananes | AH2: Citrons
A3: SOMME.SI vous permet d’additionner une plage d’après un critère spécifique recherché dans une autre plage, par exemple le nombre de pommes dont vous disposez. Sélectionnez la cellule D17 et entrez =SOMME.SI(C3:C14;C17;D3:D14). La structure de la fonction SOMME.SI est la suivante : | C3: Pommes | D3: 50 | F3: Pommes | G3: Fuji | H3: 50 | Z3: Pommes | AB3: Fuji | AD3: Floride | AF3: Cavendish | AH3: Rough
A4: =SUMIF(C3:C14,C17,D3:D14) -> 150 | C4: Oranges | D4: 20 | F4: Oranges | G4: Floride | H4: 20 | Z4: Oranges | AB4: Honeycrisp | AD4: Navel | AF4: Lady Finger | AH4: Eureka
A5: Quelle plage voulez-vous examiner ? | C5: Bananes | D5: 60 | F5: Bananes | G5: Cavendish | H5: 60 | Z5: Bananes
A6: Quelle valeur (texte ou nombre) voulez-vous rechercher ? | C6: Citrons | D6: 40 | F6: Citrons | G6: Rough | H6: 40 | Z6: Citrons
A7: Pour chaque correspondance trouvée, quelle plage voulez-vous additionner ? | C7: Pommes | D7: 50 | F7: Pommes | G7: Honeycrisp | H7: 50
A8: SOMME.SI.ENS est identique à SOMME.SI, si ce n’est qu’elle vous permet d’utiliser plusieurs critères. Par exemple, vous pouvez ici effectuer une recherche sur les critères Fruits et Type, et pas seulement sur Fruits. Sélectionnez la cellule H17 et entrez =SOMME.SI.ENS(H3:H14;F3:F14;F17;G3:G14;G17). La structure de la fonction SOMME.SI.ENS est la suivante : | C8: Oranges | D8: 20 | F8: Oranges | G8: Navel | H8: 20
A9: =SUMIFS(H3:H14,F3:F14,F17,G3:G14,G17) -> 20 | C9: Bananes | D9: 60 | F9: Bananes | G9: Lady Finger | H9: 60
A10: Quelle plage voulez-vous additionner ? | C10: Citrons | D10: 40 | F10: Citrons | G10: Eureka | H10: 40
A11: Première plage à examiner pour rechercher des correspondances | C11: Pommes | D11: 50 | F11: Pommes | G11: Honeycrisp | H11: 50
A12: Critère de la première correspondance | C12: Oranges | D12: 20 | F12: Oranges | G12: Navel | H12: 20
A13: Deuxième plage à examiner pour rechercher des correspondances | C13: Bananes | D13: 60 | F13: Bananes | G13: Cavendish | H13: 60
A14: Critère de la deuxième correspondance | C14: Citrons | D14: 40 | F14: Citrons | G14: Eureka | H14: 40
A15: CONSEIL D’EXPERT Chacune des cellules Fruits et Type s’accompagne d’une liste déroulante dans laquelle vous pouvez sélectionner différents fruits. Faites un essai et vous verrez que les formules se mettent automatiquement à jour.
A16: Poursuivez votre lecture pour plus d’informations | C16: Fruits | D16: SOMME.SI | F16: Fruits | G16: Type | H16: SOMME.SI.ENS
A17: Étape suivante | C17: Pommes | F17: Oranges | G17: Floride
A18: Fonctions conditionnelles - NB.SI
A19: Les fonctions NB.SI et NB.SI.ENS vous permettent de compter les valeurs d’une plage en utilisant le critère de votre choix. Elles sont un peu différentes des autres fonctions SI et SI.CONDITIONS car elles comportent uniquement une plage de critères et un critère. Elles n’évaluent pas une plage pour examiner ensuite une autre plage à synthétiser.
A20: Sélectionnez la cellule D64 et entrez =NB.SI(C50:C61;C64). La structure de la fonction NB.SI est la suivante :
A21: =COUNTIF(C50:C61,C64) -> 3
A22: Quelle plage voulez-vous examiner ?
A23: Quelle valeur (texte ou nombre) voulez-vous rechercher ?
A24: La fonction NB.SI.ENS est identique à SOMME.SI, si ce n’est qu’elle vous permet d’utiliser plusieurs critères. Par exemple, vous pouvez ici effectuer une recherche sur les critères Fruits et Type, et pas seulement sur Fruits. Sélectionnez la cellule H64 et entrez =NB.SI.ENS(F50:F61;F64;G50:G61;G64). La structure de la fonction NB.SI.ENS est la suivante :
A25: =COUNTIFS(F50:F61,F64,G50:G61,G64) -> 1
A26: Première plage à compter
A27: Critère de la première correspondance
A28: Deuxième plage à compter
A29: Critère de la deuxième correspondance
A30: Poursuivez votre lecture pour plus d’informations
A31: Suivant
A32: Autres fonctions conditionnelles
A33: Maintenant que vous connaissez les fonctions SOMME.SI, SOMME.SI.ENS, NB.SI et NB.SI.ENS, vous pouvez essayer d’autres fonctions, telles que MOYENNE.SI, MOYENNE.SI.ENS, MAX.SI.ENS et MIN.SI.ENS. Ces fonctions sont toutes structurées de la même façon. Par conséquent, une fois la formule créée, il vous suffit de remplacer le nom d’une fonction par celui d’une autre fonction. Nous avons créé toutes les formules dont vous aurez besoin pour la cellule E106. Vous pouvez donc les copier/coller, ou essayer de les entrer manuellement pour vous entraîner. SOMME.SI =SOMME.SI(C92:C103;C106;E92:E103) SOMME.SI.ENS =SOMME.SI.ENS(E92:E103;C92:C103;C106;D92:D103;D106) MOYENNE.SI =MOYENNE.SI(C92:C103;C106;E92:E103) MOYENNE.SI.ENS =MOYENNE.SI.ENS(E92:E103;C92:C103;C106;D92:D103;D106) NB.SI =NB.SI(C92:C103;C106) NB.SI.ENS =NB.SI.ENS(C92:C103;C106;D92:D103;D106) MAX.SI.ENS =MAX.SI.ENS(E92:E103;C92:C103;C10;D92:D103;D106) MIN.SI.ENS =MIN.SI.ENS(E92:E103;C92:C103;C106;D92:D103;D106)
A34: Poursuivez votre lecture pour plus d’informations
A35: Suivant
A36: SOMME.SI avec un argument de valeur
A37: Voici un exemple de fonction SOMME.SI associée à l’opérateur Supérieur à (>) pour trouver toutes les valeurs supérieures à un nombre donné :
A38: =SUMIF(D118:D122,">=50") -> 200
A39: Additionner certaines valeurs en fonction de ce critère :
A40: ...Examiner ces cellules...
A41: ...et si la valeur est supérieure à 50, l’additionner.
A42: REMARQUE : si vous utilisez beaucoup de formules conditionnelles, un tableau croisé dynamique peut être une solution plus adaptée. Pour plus d’informations, consultez cet article consacré aux tableaux croisés dynamiques.
A43: Plus d’informations sur le web
A44: À propos de la fonction SOMME.SI
A45: À propos de la fonction SOMME.SI.ENS
A46: À propos de la fonction NB.SI
A47: À propos de la fonction NB.SI.ENS
A48: À propos de la fonction MOYENNE.SI
A49: À propos de la fonction MOYENNE.SI.ENS | C49: Fruits | D49: Quantité | F49: Fruits | G49: Type | H49: Quantité
A50: À propos de la fonction MIN.SI.ENS | C50: Pommes | D50: 50 | F50: Pommes | G50: Fuji | H50: 50
A51: À propos de la fonction MAX.SI.ENS | C51: Oranges | D51: 20 | F51: Oranges | G51: Floride | H51: 20
A52: Créer une liste déroulante | C52: Bananes | D52: 60 | F52: Bananes | G52: Cavendish | H52: 60
A53: Formation en ligne gratuite sur Excel | C53: Citrons | D53: 40 | F53: Citrons | G53: Rough | H53: 40
A54: Retour au début | C54: Pommes | D54: 50 | F54: Pommes | G54: Honeycrisp | H54: 50
A55: Suivant | C55: Oranges | D55: 20 | F55: Oranges | G55: Navel | H55: 20
C56: Bananes | D56: 60 | F56: Bananes | G56: Lady Finger | H56: 60
C57: Citrons | D57: 40 | F57: Citrons | G57: Eureka | H57: 40
C58: Pommes | D58: 50 | F58: Pommes | G58: Honeycrisp | H58: 50
C59: Oranges | D59: 20 | F59: Oranges | G59: Navel | H59: 20
C60: Bananes | D60: 60 | F60: Bananes | G60: Cavendish | H60: 60
C61: Citrons | D61: 40 | F61: Citrons | G61: Eureka | H61: 40
C63: Fruits | D63: NB.SI | F63: Fruits | G63: Type | H63: NB.SI.ENS
C64: Pommes | D64: =COUNTIF(C50:C61,C64) -> 3 | F64: Oranges | G64: Floride | H64: =COUNTIFS(F50:F61,F64,G50:G61,G64) -> 1
C91: Fruits | D91: Type | E91: Quantité
C92: Pommes | D92: Fuji | E92: 50
C93: Oranges | D93: Floride | E93: 20
C94: Bananes | D94: Cavendish | E94: 60
C95: Citrons | D95: Rough | E95: 40
C96: Pommes | D96: Honeycrisp | E96: 50
C97: Oranges | D97: Navel | E97: 20
C98: Bananes | D98: Lady Finger | E98: 60
C99: Citrons | D99: Eureka | E99: 40
C100: Pommes | D100: Honeycrisp | E100: 50
C101: Oranges | D101: Navel | E101: 20
C102: Bananes | D102: Cavendish | E102: 60
C103: Citrons | D103: Eureka | E103: 40
C105: Fruits | D105: Type | E105: Essayez par vous-même
C106: Citrons | D106: Eureka | E106: =AVERAGEIFS(E92:E103,C92:C103,C106,D92:D103,D106) -> 40
C117: Article | D117: Quantité
C118: Pain | D118: 50
C119: Beignets | D119: 100
C120: Cookies | D120: 40
C121: Gâteaux | D121: 50
C122: Tourtes | D122: 20
D123: =SUMIF(D118:D122,">=50") -> 200

Sheet Assistant Fonction
A1: Laissez-vous guider par l’Assistant Fonction
A2: Si vous connaissez le nom de la fonction que vous souhaitez utiliser, mais que vous ne savez pas comment la créer, vous pouvez utiliser l’Assistant Fonction pour vous aider.
A3: Sélectionnez la cellule D10, accédez à Formules > Insérer une fonction > entrez RECHERCHEV dans la zone Rechercher une fonction, puis appuyez sur OK. Lorsque RECHERCHEV est en surbrillance, cliquez sur OK, en bas du formulaire. Lorsque vous sélectionnez une fonction dans la liste, Excel affiche sa syntaxe.
A4: Entrez ensuite les arguments de la fonction dans leurs zones de texte respectives. À mesure que vous entrez les arguments, Excel les évalue et affiche leur résultat, avec le résultat final en bas du formulaire. À mesure que vous complétez les sections, les critères de chaque argument apparaissent en bas du formulaire. Lorsque vous avez terminé, appuyez sur OK, et Excel entrera automatiquement la formule. | C4: Fruits | D4: Quantité
A5: ESSAYEZ ÇA Vous devez obtenir la formule suivante : =RECHERCHEV(C10;C5:D8;2;FAUX). | C5: Pommes | D5: 50
A6: BON À SAVOIR Vous pouvez entrer manuellement les références de cellule et de plage, ou les sélectionner avec la souris. | C6: Oranges | D6: 20
A7: BON À SAVOIR Lorsque vous entrez la section de chaque argument, la description de l’argument s’affiche en bas du formulaire, au-dessus du résultat de la formule. | C7: Bananes | D7: 60
A8: Précédent | C8: Citrons | D8: 40
A9: Suivant
A10: Plus d’informations sur le web | C10: Pommes | D10: =VLOOKUP(C10,C5:D8,2,FALSE) -> 50
A11: Vue d’ensemble des formules dans Excel
A12: Fonctions Excel (par catégorie)
A13: Fonctions Excel (par ordre alphabétique)
A14: Formation en ligne gratuite sur Excel

Sheet Erreurs dans les formules
A1: Résoudre les erreurs présentes dans les formules
A2: Tôt ou tard, vous rencontrerez une formule comportant une erreur (#ErrorName!). Les erreurs sont parfois utiles car elles mettent un problème en évidence, mais elles peuvent aussi être difficiles à résoudre. Heureusement, différentes options permettent de remonter jusqu’à la source de l’erreur pour la corriger.
A3: Vérification des erreurs : accédez à Formules > Vérification des erreurs. Une boîte de dialogue s’affiche en indiquant la cause générale de l’erreur. À la cellule D9, l’erreur #N/A est due à l’absence de valeur correspondant à « Pomme ». Pour résoudre cette erreur, vous pouvez utiliser une valeur existante, supprimer l’erreur à l’aide de la fonction SIERREUR, ou l’ignorer sachant qu’elle disparaîtra lorsque vous utiliserez une valeur existante. | C3: Fruits | D3: Quantité
A4: Cliquez sur Aide sur cette erreur pour ouvrir la rubrique d’aide correspondant à ce message d’erreur. Cliquez sur Afficher les étapes du calcul pour ouvrir la boîte de dialogue Évaluation de formule. | C4: Pommes | D4: 50
A5: Chaque fois que vous cliquez sur Évaluer, Excel examine la formule section par section. Excel ne vous indiquera pas forcément pourquoi l’erreur s’est produite, mais il vous signalera d’où elle vient. À partir de là, consultez la rubrique d’aide pour tenter de déterminer la cause de l’erreur. | C5: Oranges | D5: 20
A6: EXPÉRIMENTEZ Quel est le problème ici ? Astuce : l’objectif est d’additionner tous les articles à l’aide de la fonction SOMME. | C6: Bananes | D6: 60
A7: BON À SAVOIR Cliquez sur Options pour définir les règles permettant d’afficher ou d’ignorer les erreurs dans Excel. | C7: Citrons | D7: 40
A8: Précédent
A9: Suivant | C9: Pomme | D9: =VLOOKUP(C9,C3:D7,2,FALSE) -> 
A10: Plus d’informations sur le web
A11: Détecter les erreurs dans les formules
A12: Comment éviter les formules incorrectes
A13: Évaluer une formule imbriquée étape par étape
A14: Formation en ligne gratuite sur Excel
C30: Fruits | D30: Quantité
C31: Pommes | D31: 50
C32: Oranges | D32: 20
C33: Bananes | D33: 60
C34: Citrons | D34: 40
C36: Total | D36: =sume(D31:D34) -> 

Sheet En savoir plus
A1: Vous avez d’autres questions sur Excel ?
A2: Appuyez sur ALT+Q et tapez ce que vous voulez savoir.
A3: Ne vous arrêtez pas là. Excel vous offre d’autres opportunités d’apprentissage :
A4: LinkedIn Learning : Cours vidéo pour tous les niveaux, de débutant à avancé. Apprenez à votre rythme.
A5: Communauté : Posez des questions et communiquez avec d’autres adeptes d’Excel.
A6: Quelles sont les autres nouveautés ? Les abonnés à Office 365 reçoivent des mises à jour et de nouvelles fonctionnalités en continu.
